Workbook

Sheet Start
B1: OM DENNE MALEN
B2: Opprett en økonomisk plan for bedriftsoppstart ved hjelp av denne malen.
B3: Få oversikt over en økonomisk plan i regnearket Oversikt.
B4: Bruk regnearkene Mal for oppstartskostnader og Mal for resultat til å føre regnskap over oppstartskostnader og fortjeneste og tap.
B5: Regnearkene Eksempel på oppstartskostnader og Eksempel på resultat inneholder eksempeldata i tabeller.
B6: Obs!
B7: Flere instruksjoner er angitt i kolonne A i alle regneark. Denne teksten har blitt skjult med vilje. Hvis du vil fjerne teksten, velger du kolonne A og deretter SLETT. Hvis du vil vise teksten, velger du kolonne A og endrer deretter skriftfarge.
B8: Hvis du vil finne ut mer om tabeller, trykker du på SKIFT og deretter på F10 i en tabell. Velg alternativet TABELL, og velg deretter ALTERNATIV TEKST.

Sheet Oversikt
B1: ØKONOMISK PLAN FOR BEDRIFTSOPPSTART
B2: Det er i opprettingen av en økonomisk plan at all forretningsplanleggingen samles. Når du har identifisert produktet, målmarkedet og målkunder, samt priser, er du klar til å lage prognoser over kostnader, salg og fortjeneste. Disse elementene, sammen med dine antakelser, vil hjelpe deg med å beregne salgsprognosen. Den andre siden av virksomheten vil være hvilke utgifter du forventer å få. Dette er viktig fortløpende for å se når du er lønnsom. Det er også viktig å vite, når du starter bedriften, hvilke utgifter du må finansiere før kundesalg eller pengene det genererer, mottas.
B3: Forventede oppstartskostnader: Tabellen i neste fane, Mal for oppstartskostnader, inneholder en tom mal med noen instruksjoner for å komme i gang. Den neste fanen, Eksempel på oppstartskostnader, viser et utvalg poster for løpende og engangskostnader, som du kanskje trenger for å åpne bedriften. Mange bedrifter betales på kreditt over tid og har ikke penger som kommer inn umiddelbart. Det er viktig å beregne når penger vil begynne å flyte inn i selskapet ved å anta hvor mange måneder med regelmessige poster, i tillegg til engangsutgifter, du må finansiere via besparelser eller en innledende investering.
B4: Modell for forventet fortjeneste og tap: I fanen med etiketten Mal for resultat, finner du en tom mal for salgsprognoser og en modell for fortjeneste og tap. Den neste fanen, Eksempel på resultat, viser en bedrifts prognoser for et utvalg av anslagene de første tolv månedene av driften. Den øverste delen av tabellen i hver modell viser forventet salg og bruttofortjeneste. Dette er et bra sted å begynne å opprette salgsprognosen. Den neste inndelingen nedenfor spesifiserer de regelmessige utgiftene du anslår for de samme månedene. Disse bør være i samsvar med de estimerte oppstartskostnadene du fullførte i den forrige inndelingen. Nederst i modellen vil du begynne å se når bedriften blir lønnsom, og hvilke utgiftsposter som har størst innvirkning på lønnsomheten.
B5: Spor antakelsene du gjør for å beregne inntekter og solgte varers kost. For bedrifter som ikke har startet driften ennå, bør du ha en forståelse av hvordan du beregner disse for produktet eller tjenesten. Nedenfor finnes noen retningslinjer for beregning:
B6: Inntekter: Begynn med å bestemme ut fra målmarkedet (gruppen av potensielle kunder, bedrifter eller brukere) hvor mange av disse som vil være mål det første året. Hvor stor prosentandel av disse forventer du å lukke? Hva er en gjennomsnittlig transaksjon for dem for å kjøpe produktet eller tjenesten? Hvor mange kan du klare den første måneden, den andre og så videre? Det kan være lurt å starte med et tall den første måneden og øke det med en prosentdel, for eksempel 10 %. For eksempel hvis du selger rengjøringstjenester til små bedrifter i byen din og det er 500 bedrifter du tror trenger tjenesten. Hvis gjennomsnittskontrakten er på 250 amerikanske dollar per måned, må du beregne hvor mange bedrifter du kan inngå en kontrakt med for hver måned det første året.
B7: Solgte varers kost (vareforbruk): Dette bør beregnes for produkter og enkelte tjenester. Det er omkostningene for å produsere produktet. Hvis du for eksempel selger klær, vil vareforbruket være prisen du betalte for å kjøpe klær fra en produsent. Hvis du lager dem selv, vil det være kostnaden for materiell og arbeidet med å lage dem. For tjenester vil det være den direkte arbeidskostnaden for en time fakturerbart arbeid. Alt under bruttofortjeneste på resultatet er faste eller indirekte kostnader for den totale virksomheten, for eksempel leie, telefon eller til og med markedsføring.

Sheet Mal for oppstartskostnader
B1: OPPSTARTSKOSTNADER
B2: Din kafé | C2: =TODAY() -> 2022-01-17
B4: KOSTNADSPOSTER | C4: MÅNEDER | D4: KOSTNAD/MÅNED | E4: ENGANGSKOSTNAD | F4: TOTALKOSTNAD
B5: Annonsering/markedsføring | F5: =(C5*D5)+IF(E5>0,E5,0) -> kr 0
B6: Ansattes lønn | F6: =(C6*D6)+IF(E6>0,E6,0) -> kr 0
B7: Arbeidsgiveravgift og fordeler for ansatte | F7: kr 0
B8: Betaling av leie / innbo og løsøre | F8: kr 0
B9: Porto/forsendelse | F9: kr 0
B10: BEREGNET OPPSTARTSBUDSJETT | F10: =SUBTOTAL(109,Oppstart[TOTALKOSTNAD]) -> 0

Sheet Eksempel på oppstartskostnader
B1: OPPSTARTSKOSTNADER
B2: ='Mal for oppstartskostnader'!B2 -> Din kafé | C2: =TODAY() -> 2022-01-17
B4: KOSTNADSPOSTER | C4: MÅNEDER | D4: KOSTNAD/MÅNED | E4: ENGANGSKOSTNAD | F4: TOTALKOSTNAD
B5: Annonsering/markedsføring | C5: 3 | D5: kr 300 | E5: kr 2,000 | F5: =(C5*D5)+IF(E5>0,E5,0) -> kr 2,900
B6: Ansattes lønn | C6: 4 | D6: kr 3,500 | E6: kr 2 | F6: =(C6*D6)+IF(E6>0,E6,0) -> kr 14,002
B7: Arbeidsgiveravgift og fordeler for ansatte | C7: 4 | D7: kr 500 | E7: kr 2,000 | F7: kr 4,000
B8: Betaling av leie / innbo og løsøre | C8: 4 | D8: kr 750 | E8: kr 3,000 | F8: kr 6,000
B9: Porto/forsendelse | C9: 1 | D9: kr 25 | E9: kr 25 | F9: kr 50
B10: BEREGNET OPPSTARTSBUDSJETT | F10: =SUM(F6:F9) -> kr 24,052

Sheet Mal for overskudd og tap
B1: OPPSTARTSKOSTNADER
B2: ='Mal for oppstartskostnader'!B2 -> Din kafé | C2: =TODAY() -> 2022-01-17
B4: INNTEKTER | C4: JAN | D4: FEB | E4: MAR | F4: APR | G4: MAI | H4: JUN | I4: JUL | J4: AUG | K4: SEP | L4: OKT | M4: NOV | N4: DES | O4: HITTIL I ÅR
B5: Beregnet produktsalg | C5: kr 0 | D5: kr 0 | E5: kr 0 | F5: kr 0 | G5: kr 0 | H5: kr 0 | I5: kr 0 | J5: kr 0 | K5: kr 0 | L5: kr 0 | M5: kr 0 | N5: kr 0 | O5: =SUM(C5:N5) -> kr 0
B6: Mindre retur av solgte varer og rabatter | C6: kr 0 | D6: kr 0 | E6: kr 0 | F6: kr 0 | G6: kr 0 | H6: kr 0 | I6: kr 0 | J6: kr 0 | K6: kr 0 | L6: kr 0 | M6: kr 0 | N6: kr 0 | O6: =SUM(C6:N6) -> kr 0
B7: Tjenesteinntekter | C7: kr 0 | D7: kr 0 | E7: kr 0 | F7: kr 0 | G7: kr 0 | H7: kr 0 | I7: kr 0 | J7: kr 0 | K7: kr 0 | L7: kr 0 | M7: kr 0 | N7: kr 0 | O7: kr 0
B8: Annen inntekt | C8: kr 0 | D8: kr 0 | E8: kr 0 | F8: kr 0 | G8: kr 0 | H8: kr 0 | I8: kr 0 | J8: kr 0 | K8: kr 0 | L8: kr 0 | M8: kr 0 | N8: kr 0 | O8: kr 0
B9: Nettosalg | C9: =SUBTOTAL(109,Eksempelinntekt[JAN]) -> kr 0 | D9: =SUBTOTAL(109,Eksempelinntekt[FEB]) -> kr 0 | E9: =SUBTOTAL(109,Eksempelinntekt[MAR]) -> kr 0 | F9: =SUBTOTAL(109,Eksempelinntekt[APR]) -> kr 0 | G9: =SUBTOTAL(109,Eksempelinntekt[MAI]) -> kr 0 | H9: =SUBTOTAL(109,Eksempelinntekt[JUN]) -> kr 0 | I9: =SUBTOTAL(109,Eksempelinntekt[JUL]) -> kr 0 | J9: =SUBTOTAL(109,Eksempelinntekt[AUG]) -> kr 0 | K9: =SUBTOTAL(109,Eksempelinntekt[SEP]) -> kr 0 | L9: =SUBTOTAL(109,Eksempelinntekt[OKT]) -> kr 0 | M9: =SUBTOTAL(109,Eksempelinntekt[NOV]) -> kr 0 | N9: =SUBTOTAL(109,Eksempelinntekt[DES]) -> kr 0 | O9: =SUM(Eksempelinntekt[[#Totals],[JAN]:[DES]]) -> kr 0
B10: Kostnader for solgte varer | C10: =C5*0.4 -> kr 0 | D10: kr 0 | E10: kr 0 | F10: kr 0 | G10: kr 0 | H10: kr 0 | I10: kr 0 | J10: kr 0 | K10: kr 0 | L10: kr 0 | M10: kr 0 | N10: kr 0 | O10: kr 0
B11: Bruttofortjeneste | C11: =IFERROR(Eksempelinntekt[[#Totals],[JAN]]-C10,"") -> kr 0 | D11: =IFERROR(Eksempelinntekt[[#Totals],[FEB]]-D10,"") -> kr 0 | E11: =IFERROR(Eksempelinntekt[[#Totals],[MAR]]-E10,"") -> kr 0 | F11: =IFERROR(Eksempelinntekt[[#Totals],[APR]]-F10,"") -> kr 0 | G11: =IFERROR(Eksempelinntekt[[#Totals],[MAI]]-G10,"") -> kr 0 | H11: =IFERROR(Eksempelinntekt[[#Totals],[JUN]]-H10,"") -> kr 0 | I11: =IFERROR(Eksempelinntekt[[#Totals],[JUL]]-I10,"") -> kr 0 | J11: =IFERROR(Eksempelinntekt[[#Totals],[AUG]]-J10,"") -> kr 0 | K11: =IFERROR(Eksempelinntekt[[#Totals],[SEP]]-K10,"") -> kr 0 | L11: =IFERROR(Eksempelinntekt[[#Totals],[OKT]]-L10,"") -> kr 0 | M11: =IFERROR(Eksempelinntekt[[#Totals],[NOV]]-M10,"") -> kr 0 | N11: =IFERROR(Eksempelinntekt[[#Totals],[DES]]-N10,"") -> kr 0 | O11: kr 0
B13: UTGIFTER | C13: JAN | D13: FEB | E13: MAR | F13: APR | G13: MAI | H13: JUN | I13: JUL | J13: AUG | K13: SEP | L13: OKT | M13: NOV | N13: DES | O13: HITTIL I ÅR
B14: Lønn | C14: kr 0 | D14: kr 0 | E14: kr 0 | F14: kr 0 | G14: kr 0 | H14: kr 0 | I14: kr 0 | J14: kr 0 | K14: kr 0 | L14: kr 0 | M14: kr 0 | N14: kr 0 | O14: =SUM(C14:N14) -> kr 0
B15: Markedsføring/annonsering | C15: kr 0 | D15: kr 0 | E15: kr 0 | F15: kr 0 | G15: kr 0 | H15: kr 0 | I15: kr 0 | J15: kr 0 | K15: kr 0 | L15: kr 0 | M15: kr 0 | N15: kr 0 | O15: =SUM(C15:N15) -> kr 0
B16: Salgsprovisjoner | C16: kr 0 | D16: kr 0 | E16: kr 0 | F16: kr 0 | G16: kr 0 | H16: kr 0 | I16: kr 0 | J16: kr 0 | K16: kr 0 | L16: kr 0 | M16: kr 0 | N16: kr 0 | O16: kr 0
B17: Leie | C17: kr 0 | D17: kr 0 | E17: kr 0 | F17: kr 0 | G17: kr 0 | H17: kr 0 | I17: kr 0 | J17: kr 0 | K17: kr 0 | L17: kr 0 | M17: kr 0 | N17: kr 0 | O17: kr 0
B18: Annet 1 | C18: kr 0 | D18: kr 0 | E18: kr 0 | F18: kr 0 | G18: kr 0 | H18: kr 0 | I18: kr 0 | J18: kr 0 | K18: kr 0 | L18: kr 0 | M18: kr 0 | N18: kr 0 | O18: kr 0
B19: Totale utgifter | C19: =IF(SUM(C14:C18)=0,"",SUM(C14:C18)) ->  | O19: =SUM(Eksempelkostnader[[#Totals],[JAN]:[DES]]) -> kr 0
B20: Inntekt før skatt | C20: =IFERROR('Mal for overskudd og tap'!$C$11-Eksempelkostnader[[#Totals],[JAN]],"") ->  | D20: =IFERROR('Mal for overskudd og tap'!$C$11-Eksempelkostnader[[#Totals],[FEB]],"") ->  | E20: =IFERROR('Mal for overskudd og tap'!$C$11-Eksempelkostnader[[#Totals],[MAR]],"") ->  | F20: =IFERROR('Mal for overskudd og tap'!$C$11-Eksempelkostnader[[#Totals],[APR]],"") ->  | G20: =IFERROR('Mal for overskudd og tap'!$C$11-Eksempelkostnader[[#Totals],[MAI]],"") ->  | H20: =IFERROR('Mal for overskudd og tap'!$C$11-Eksempelkostnader[[#Totals],[JUN]],"") ->  | I20: =IFERROR('Mal for overskudd og tap'!$C$11-Eksempelkostnader[[#Totals],[JUL]],"") ->  | J20: =IFERROR('Mal for overskudd og tap'!$C$11-Eksempelkostnader[[#Totals],[AUG]],"") ->  | K20: =IFERROR('Mal for overskudd og tap'!$C$11-Eksempelkostnader[[#Totals],[SEP]],"") ->  | L20: =IFERROR('Mal for overskudd og tap'!$C$11-Eksempelkostnader[[#Totals],[OKT]],"") ->  | M20: =IFERROR('Mal for overskudd og tap'!$C$11-Eksempelkostnader[[#Totals],[NOV]],"") ->  | N20: =IFERROR('Mal for overskudd og tap'!$C$11-Eksempelkostnader[[#Totals],[DES]],"") ->  | O20: kr 0
B21: Utgifter til inntektsskatt | C21: =IFERROR(C20*0.15," ") ->  | D21: =IFERROR(D20*0.15," ") ->  | E21: =IFERROR(E20*0.15," ") ->  | O21: =SUM('Mal for overskudd og tap'!$C$21:$N$21) -> kr 0
B23: NETTOINNTEKT | C23: =IFERROR(C20-'Mal for overskudd og tap'!$C$21,"") ->  | D23: =IFERROR(D20-'Mal for overskudd og tap'!$D$21,"") ->  | E23: =IFERROR(E20-'Mal for overskudd og tap'!$E$21,"") ->  | F23: =IFERROR(F20-'Mal for overskudd og tap'!$F$21,"") ->  | G23: =IFERROR(G20-'Mal for overskudd og tap'!$G$21,"") ->  | H23: =IFERROR(H20-'Mal for overskudd og tap'!$H$21,"") ->  | I23: =IFERROR(I20-'Mal for overskudd og tap'!$I$21,"") ->  | J23: =IFERROR(J20-'Mal for overskudd og tap'!$J$21,"") ->  | K23: =IFERROR(K20-'Mal for overskudd og tap'!$K$21,"") ->  | L23: =IFERROR(L20-'Mal for overskudd og tap'!$L$21,"") ->  | M23: =IFERROR(M20-'Mal for overskudd og tap'!$M$21,"") ->  | N23: =IFERROR(N20-'Mal for overskudd og tap'!$N$21,"") ->  | O23: =IFERROR(O20-'Mal for overskudd og tap'!$O$21,"") -> kr 0

Sheet Eksempel på overskudd og tap
B1: OPPSTARTSKOSTNADER
B2: ='Mal for oppstartskostnader'!B2 -> Din kafé | C2: =TODAY() -> 2022-01-17
B4: INNTEKTER | C4: JAN | D4: FEB | E4: MAR | F4: APR | G4: MAI | H4: JUN | I4: JUL | J4: AUG | K4: SEP | L4: OKT | M4: NOV | N4: DES | O4: HITTIL I ÅR
B5: Beregnet produktsalg | C5: kr 5,000 | D5: kr 13,000 | E5: kr 16,000 | F5: kr 7,000 | G5: kr 14,500 | H5: kr 16,400 | I5: kr 22,500 | J5: kr 23,125 | K5: kr 24,549 | L5: kr 22,000 | M5: kr 25,000 | N5: kr 27,349 | O5: =SUM(C5:N5) -> kr 216,423
B6: Mindre retur av solgte varer og rabatter | C6: kr 0 | D6: kr -350 | E6: kr 0 | F6: kr -206 | G6: kr -234 | H6: kr 0 | I6: kr 0 | J6: kr -280 | K6: kr -1,200 | L6: kr -1,600 | M6: kr 0 | N6: kr -2,400 | O6: =SUM(C6:N6) -> kr -6,270
B7: Tjenesteinntekter | C7: kr 0 | D7: kr 0 | E7: kr 0 | F7: kr 0 | G7: kr 0 | H7: kr 250 | I7: kr 350 | J7: kr 100 | K7: kr 0 | L7: kr 0 | M7: kr 1,245 | N7: kr 1,360 | O7: kr 3,305
B8: Annen inntekt | C8: kr 0 | D8: kr 0 | E8: kr 0 | F8: kr 0 | G8: kr 0 | H8: kr 0 | I8: kr 0 | J8: kr 1,500 | K8: kr 0 | L8: kr 0 | M8: kr 0 | N8: kr 0 | O8: kr 1,500
B9: Nettosalg | C9: =SUBTOTAL(109,FaktiskeInntekter[JAN]) -> kr 5,000 | D9: =SUBTOTAL(109,FaktiskeInntekter[FEB]) -> kr 12,650 | E9: =SUBTOTAL(109,FaktiskeInntekter[MAR]) -> kr 16,000 | F9: =SUBTOTAL(109,FaktiskeInntekter[APR]) -> kr 6,794 | G9: =SUBTOTAL(109,FaktiskeInntekter[MAI]) -> kr 14,266 | H9: =SUBTOTAL(109,FaktiskeInntekter[JUN]) -> kr 16,650 | I9: =SUBTOTAL(109,FaktiskeInntekter[JUL]) -> kr 22,850 | J9: =SUBTOTAL(109,FaktiskeInntekter[AUG]) -> kr 24,445 | K9: =SUBTOTAL(109,FaktiskeInntekter[SEP]) -> kr 23,349 | L9: =SUBTOTAL(109,FaktiskeInntekter[OKT]) -> kr 20,400 | M9: =SUBTOTAL(109,FaktiskeInntekter[NOV]) -> kr 26,245 | N9: =SUBTOTAL(109,FaktiskeInntekter[DES]) -> kr 26,309 | O9: =SUM(FaktiskeInntekter[[#Totals],[JAN]:[DES]]) -> kr 214,958
B10: Kostnader for solgte varer | C10: =C5*0.4 -> kr 2,000 | D10: kr 5,200 | E10: kr 6,400 | F10: kr 2,800 | G10: kr 5,800 | H10: kr 6,560 | I10: kr 9,000 | J10: kr 9,250 | K10: kr 9,820 | L10: kr 8,800 | M10: kr 10,000 | N10: kr 10,940 | O10: kr 86,569
B11: Bruttofortjeneste | C11: =IFERROR(FaktiskeInntekter[[#Totals],[JAN]]-C10,"") -> kr 3,000 | D11: =IFERROR(FaktiskeInntekter[[#Totals],[FEB]]-D10,"") -> kr 7,450 | E11: =IFERROR(FaktiskeInntekter[[#Totals],[MAR]]-E10,"") -> kr 9,600 | F11: =IFERROR(FaktiskeInntekter[[#Totals],[APR]]-F10,"") -> kr 3,994 | G11: =IFERROR(FaktiskeInntekter[[#Totals],[MAI]]-G10,"") -> kr 8,466 | H11: =IFERROR(FaktiskeInntekter[[#Totals],[JUN]]-H10,"") -> kr 10,090 | I11: =IFERROR(FaktiskeInntekter[[#Totals],[JUL]]-I10,"") -> kr 13,850 | J11: =IFERROR(FaktiskeInntekter[[#Totals],[AUG]]-J10,"") -> kr 15,195 | K11: =IFERROR(FaktiskeInntekter[[#Totals],[SEP]]-K10,"") -> kr 13,529 | L11: =IFERROR(FaktiskeInntekter[[#Totals],[OKT]]-L10,"") -> kr 11,600 | M11: =IFERROR(FaktiskeInntekter[[#Totals],[NOV]]-M10,"") -> kr 16,245 | N11: =IFERROR(FaktiskeInntekter[[#Totals],[DES]]-N10,"") -> kr 15,369 | O11: kr 128,389
B13: UTGIFTER | C13: JAN | D13: FEB | E13: MAR | F13: APR | G13: MAI | H13: JUN | I13: JUL | J13: AUG | K13: SEP | L13: OKT | M13: NOV | N13: DES | O13: HITTIL I ÅR
B14: Lønn | C14: kr 2,500 | D14: kr 2,500 | E14: kr 3,500 | F14: kr 5,000 | G14: kr 5,000 | H14: kr 5,000 | I14: kr 8,000 | J14: kr 9,000 | K14: kr 9,000 | L14: kr 9,000 | M14: kr 9,000 | N14: kr 9,000 | O14: =SUM(C14:N14) -> kr 76,500
B15: Markedsføring/annonsering | C15: kr 400 | D15: kr 450 | E15: kr 450 | F15: kr 450 | G15: kr 900 | H15: kr 900 | I15: kr 900 | J15: kr 900 | K15: kr 900 | L15: kr 900 | M15: kr 1,200 | N15: kr 1,200 | O15: =SUM(C15:N15) -> kr 9,550
B16: Salgsprovisjoner | C16: kr 250 | D16: kr 650 | E16: kr 800 | F16: kr 350 | G16: kr 725 | H16: kr 820 | I16: kr 1,125 | J16: kr 1,156 | K16: kr 1,227 | L16: kr 1,100 | M16: kr 1,250 | N16: kr 1,367 | O16: kr 10,821
B17: Leie | C17: kr 1,250 | D17: kr 1,250 | E17: kr 1,250 | F17: kr 1,250 | G17: kr 1,250 | H17: kr 1,250 | I17: kr 1,250 | J17: kr 1,250 | K17: kr 1,250 | L17: kr 1,250 | M17: kr 1,250 | N17: kr 1,250 | O17: kr 15,000
B18: Totale utgifter | C18: =IF(SUM(C14:C17)=0,"",SUM(C14:C17)) -> kr 4,400 | D18: kr 4,850 | E18: kr 6,000 | F18: kr 7,050 | G18: kr 7,875 | H18: kr 7,970 | I18: kr 11,275 | J18: kr 12,306 | K18: kr 12,377 | L18: kr 12,250 | M18: kr 12,700 | N18: kr 12,817 | O18: =SUM(FaktiskeUtgifter[[#Totals],[JAN]:[DES]]) -> kr 111,871
B19: Inntekt før skatt | C19: =IFERROR('Eksempel på overskudd og tap'!$C$11-FaktiskeUtgifter[[#Totals],[JAN]],"") -> kr -1,400 | D19: =IFERROR('Eksempel på overskudd og tap'!$D$11-FaktiskeUtgifter[[#Totals],[FEB]],"") -> kr 2,600 | E19: =IFERROR('Eksempel på overskudd og tap'!$E$11-FaktiskeUtgifter[[#Totals],[MAR]],"") -> kr 3,600 | F19: =IFERROR('Eksempel på overskudd og tap'!$F$11-FaktiskeUtgifter[[#Totals],[APR]],"") -> kr -3,056 | G19: =IFERROR('Eksempel på overskudd og tap'!$G$11-FaktiskeUtgifter[[#Totals],[MAI]],"") -> kr 591 | H19: =IFERROR('Eksempel på overskudd og tap'!$H$11-FaktiskeUtgifter[[#Totals],[JUN]],"") -> kr 2,120 | I19: =IFERROR('Eksempel på overskudd og tap'!$I$11-FaktiskeUtgifter[[#Totals],[JUL]],"") -> kr 2,575 | J19: =IFERROR('Eksempel på overskudd og tap'!$J$11-FaktiskeUtgifter[[#Totals],[AUG]],"") -> kr 2,889 | K19: =IFERROR('Eksempel på overskudd og tap'!$K$11-FaktiskeUtgifter[[#Totals],[SEP]],"") -> kr 1,152 | L19: =IFERROR('Eksempel på overskudd og tap'!$L$11-FaktiskeUtgifter[[#Totals],[OKT]],"") -> kr -650 | M19: =IFERROR('Eksempel på overskudd og tap'!$M$11-FaktiskeUtgifter[[#Totals],[NOV]],"") -> kr 3,545 | N19: =IFERROR('Eksempel på overskudd og tap'!$N$11-FaktiskeUtgifter[[#Totals],[DES]],"") -> kr 2,552 | O19: =SUM(C19:N19) -> kr 16,518
B20: Utgifter til inntektsskatt | C20: =C19*0.15 -> kr -210 | D20: kr 390 | E20: =E19*0.15 -> kr 540 | F20: =F19*0.15 -> kr -458 | G20: =G19*0.15 -> kr 89 | H20: =H19*0.15 -> kr 318 | I20: =I19*0.15 -> kr 386 | J20: =J19*0.15 -> kr 433 | K20: =K19*0.15 -> kr 173 | L20: =L19*0.15 -> kr -98 | M20: =M19*0.15 -> kr 532 | N20: =N19*0.15 -> kr 383 | O20: =SUM('Eksempel på overskudd og tap'!$C$20:$N$20) -> kr 2,478
B22: NETTOINNTEKT | C22: =IFERROR(C19-'Eksempel på overskudd og tap'!$C$20," ") -> kr -1,190 | D22: =IFERROR(D19-'Eksempel på overskudd og tap'!$D$20," ") -> kr 2,210 | E22: =IFERROR(E19-'Eksempel på overskudd og tap'!$E$20,"") -> kr 3,060 | F22: =IFERROR(F19-'Eksempel på overskudd og tap'!$F$20,"") -> kr -2,598 | G22: =IFERROR(G19-'Eksempel på overskudd og tap'!$G$20,"") -> kr 502 | H22: =IFERROR(H19-'Eksempel på overskudd og tap'!$H$20,"") -> kr 1,802 | I22: =IFERROR(I19-'Eksempel på overskudd og tap'!$I$20,"") -> kr 2,189 | J22: =IFERROR(J19-'Eksempel på overskudd og tap'!$J$20,"") -> kr 2,455 | K22: =IFERROR(K19-'Eksempel på overskudd og tap'!$K$20,"") -> kr 979 | L22: =IFERROR(L19-'Eksempel på overskudd og tap'!$L$20,"") -> kr -553 | M22: =IFERROR(M19-'Eksempel på overskudd og tap'!$M$20,"") -> kr 3,013 | N22: =IFERROR(N19-'Eksempel på overskudd og tap'!$N$20,"") -> kr 2,169 | O22: =IFERROR(O19-'Eksempel på overskudd og tap'!$O$20,"") -> kr 14,040
